Cogmind - Beta 13 @@@ ROGUE MODE // 2024.04.02 @ 16:23:32 Player: LEWiKK Result: Destroyed by Y-45 Defender with Heavy Assault Rifle Performance ------------- Evolutions (2) 1000 Regions Visited (3) 600 Robots Destroyed (42) 210 Value Destroyed (1247) 1247 Prototype IDs (1) 20 Alien Tech Used (0) 0 Bonus (146) 146 TOTAL SCORE: 3223 Bonus ------- High Alert Combat Kills 146 Cogmind --------- Core Integrity 0/550 Matter 70/300 Energy 100/100 System Corruption 0% Temperature Cool (9) Movement Core (50) Location -8/Materials Parts ------- > --- POWER (1) -------- (None) > --- PROPULSION (3) --- (None) > --- UTILITY (5) ------ (None) > --- WEAPON (2) ------- (None) > --- INVENTORY (5) ---- Cesium-ion Thruster Cesium-ion Thruster Cesium-ion Thruster System Shield Datajack Peak State ------------ > --- POWER ------------ Nuclear Core > --- PROPULSION ------- Hover Unit > --- UTILITY ---------- Advanced Weight Redist. System Signal Interpreter ECM Suite > --- WEAPON ----------- Mini Grenade Launcher > --- INVENTORY -------- Hover Unit Trap Extractor Mini Grenade Launcher Datajack [Rating: 11] Favorites ----------- Power Light Ion Engine Engine Light Ion Engine Power Core Nuclear Core Propulsion Flight Unit Wheel Wheel Hover Unit Hover Unit Flight Unit Flight Unit Utility Signal Interpreter Device Sensor Array Processor Signal Interpreter Weapon Light Assault Rifle Energy Gun Improved EM Shotgun Ballistic Gun Light Assault Rifle Launcher Mini Grenade Launcher Special Melee Weapon Datajack Build | -11 -10 -9 -8 ------- Run | Yrd Mat Mat Mat Slots Evolved 4 | . . 2 2 Power . | . . . . Propulsion 1 | . . 1 . Utility 3 | . . 1 2 Weapon . | . . . . Parts Attached 30 | 5 9 12 4 Power 4 | 1 . 2 1 Engine 3 | 1 . 2 . Core 1 | . . . 1 Reactor . | . . . . Propulsion 7 | 2 3 2 . Treads . | . . . . Leg . | . . . . Wheel 3 | 2 1 . . Hover 1 | . . 1 . Flight 3 | . 2 1 . Utility 8 | 1 2 4 1 Device 7 | 1 1 4 1 Storage . | . . . . Processor 1 | . 1 . . Hackware . | . . . . Protection . | . . . . Artifact . | . . . . Weapon 11 | 1 4 4 2 Energy Gun 2 | . . 1 1 Energy Cannon . | . . . . Ballistic Gun 2 | 1 1 . . Ballistic Cannon . | . . . . Launcher 5 | . 1 3 1 Special Weapon . | . . . . Impact Weapon . | . . . . Slashing Weapon . | . . . . Piercing Weapon . | . . . . Special Melee Weapon 2 | . 2 . . Unidentified Prototypes 1 | . . 1 . Parts Lost 15 | . . 7 8 Power 2 | . . 1 1 Propulsion 4 | . . 3 1 Utility 5 | . . 2 3 Weapon 4 | . . 1 3 Highest Loss Streak 8 | . . 2 8 To Critical Strikes . | . . . . Average Slot Usage (%) 63 | . 85 65 26 Engine 7 | . 14 6 2 Wheel 4 | . 21 . . Flight 9 | . 6 12 . Device 17 | . 16 20 9 Processor 8 | . 4 11 3 Ballistic Gun 7 | . 12 7 . Launcher 3 | . 2 4 4 Special Melee Weapon 2 | . 6 1 . Naked Turns 74 | . . . 74 Heaviest Build 10 | 5 10 10 10 Greatest Support 26 | 20 26 8 15 Greatest Overweight (x) 2 | . . 2 1 Average Overweight (x) . | . . . . Largest Inventory Capacity 5 | 5 5 5 5 Average Capacity 5 | 5 5 5 5 Most Carried 5 | 2 5 5 5 Average Carried 3 | . 3 4 4 Final Capacity 5 | 5 5 5 5 Final Carried 5 | . 4 5 5 Class Distribution -------------------- 77% | Mutant 22% | Scout Dominant Class ---------------- Mutant | -10/Materials Mutant | -9/Materials Mutant | -8/Materials Resources | -11 -10 -9 -8 ----------- Run | Yrd Mat Mat Mat Matter Collected 782 | 264 93 415 10 Remotely . | . . . . Salvage Created 876 | 85 126 514 151 Parts 69 | 10 19 33 7 Haulers Intercepted . | . . . . Recyclers Shooed . | . . . . Parts Field Recycled . | . . . . Retrieved Matter . | . . . . Parts Self-Destructed . | . . . . Prevented . | . . . . Kills | -11 -10 -9 -8 ------- Run | Yrd Mat Mat Mat Combat Hostiles Destroyed 31 | 1 5 19 6 Guns 8 | 1 3 4 . AOE 23 | . 2 15 6 Classes Destroyed 9 | 3 3 3 . Worker 2 | 1 . 1 . Builder 4 | . 2 1 1 Tunneler 1 | 1 . . . Watcher 4 | . 2 1 1 Swarmer 9 | . 3 3 3 Grunt 16 | 1 2 10 3 Brawler 1 | . . 1 . Duelist 1 | . . 1 . Sentry 4 | . . 4 . Best Kill Streak 6 | 2 6 5 5 Combat Bots Only 5 | 1 3 5 3 Max Kills in Single Turn 3 | 1 3 3 2 Gunslinging . | . . . . Exploded 2 | . 1 2 2 Melee . | . . . . Uniques/NPCs Destroyed . | . . . . Combat | -11 -10 -9 -8 -------- Run | Yrd Mat Mat Mat Hostile Shots Fired 148 | 10 16 50 72 Missed 50 | 4 4 19 23 Damage Taken 1664 | 66 105 648 845 Core 983 | 22 27 369 565 Absorbed by Shields . | . . . . Core Remaining (%) 59 | 91 80 7 . Volleys Fired 125 | 30 27 57 11 Largest 2 | 1 2 2 1 Hottest 65 | 20 50 65 65 Shots Fired 136 | 30 29 66 11 Gun 85 | 30 22 32 1 Cannon . | . . . . Launcher 51 | . 7 34 10 Special . | . . . . Kinetic 82 | 30 22 30 . Thermal 1 | . . . 1 Explosive 51 | . 7 34 10 Electromagnetic 2 | . . 2 . Robot Hit Streak 11 | 11 6 11 9 Robot Miss Streak 4 | 3 2 4 2 Penetration Max . | . . . . Secondary Targets . | . . . . Shots Hit Robots 70 | 22 14 33 1 Core Hits 87 | 8 12 49 18 Critical Kills . | . . . . Critical Parts Destroyed . | . . . . Critical Strikes . | . . . . Melee Attacks . | . . . . Impact . | . . . . Slashing . | . . . . Piercing . | . . . . Sneak Attacks . | . . . . Combat Hostiles . | . . . . Follow-up Attacks . | . . . . Damage Inflicted 2852 | 174 484 1473 721 Guns 457 | 174 101 182 . Cannons . | . . . . Explosions 2394 | . 383 1290 721 Melee . | . . . . Ramming 1 | . . 1 . Kinetic 438 | 174 101 163 . Thermal 250 | . 179 71 . Explosive 2084 | . 204 1159 721 Electromagnetic 79 | . . 79 . Impact . | . . . . Slashing . | . . . . Piercing . | . . . . Highest Corruption . | . . . . Average Corruption . | . . . . Corruption Purged . | . . . . Corruption Blocked . | . . . . Overload Shots . | . . . . Overflow Damage 128 | . 64 23 41 Projectiles . | . . . . Explosions 128 | . 64 23 41 Melee . | . . . . Knockbacks . | . . . . Impact . | . . . . Kinetic . | . . . . Secondary . | . . . . Self-Inflicted Damage 331 | . 4 217 110 Shots 13 | . 1 9 3 Rammed 1 | . . 1 . Targets Rammed 1 | . . 1 . Kicked . | . . . . Crushed . | . . . . Highest Temperature 44 | 6 10 44 11 Average Temperature 7 | 6 6 10 4 Received Heat Transfer 540 | 36 18 126 360 Siege Activations . | . . . . Robots Corrupted . | . . . . Combat Hostiles . | . . . . Parts Fried . | . . . . Impact Corruptions . | . . . . Robots Melted . | . . . . Combat Hostiles . | . . . . Parts Melted . | . . . . Heat Transferred 300 | . 150 150 . Parts Sabotaged . | . . . . Parts Stolen . | . . . . Parts Stripped . | . . . . Power Chain Reactions 1 | . . 1 . Alert | -11 -10 -9 -8 ------- Run | Yrd Mat Mat Mat Peak Influence 832 | 30 265 832 690 Initial 347 | . 19 111 347 Average 355 | 8 150 441 524 Maximum Alert Level 3 | . 1 3 2 Low Security (%) 31 | 100 59 18 . Level 1 27 | . 40 28 26 Level 2 26 | . . 28 73 Level 3 13 | . . 24 . Level 4 . | . . . . Level 5 . | . . . . High Security . | . . . . Max Security . | . . . . Squads Dispatched 3 | . . 2 1 Investigation . | . . . . Extermination . | . . . . Reinforcement 3 | . . 2 1 Assault . | . . . . Garrison . | . . . . Intercept . | . . . . Searches Triggered . | . . . . Construction Impeded 2 | . . 1 1 Haulers Reinforced . | . . . . Active Scanning Responses . | . . . . Cargo Convoy Interrupts . | . . . . Stealth | -11 -10 -9 -8 --------- Run | Yrd Mat Mat Mat Distress Signals 2 | . 1 1 . Communications Jammed . | . . . . Distress Signals . | . . . . Times Spotted 52 | 1 8 30 13 Peak Tracking Total 7 | 1 4 4 7 Tactical Retreats 9 | . 1 5 3 Traps | -11 -10 -9 -8 ------- Run | Yrd Mat Mat Mat Traps Triggered . | . . . . Indirectly . | . . . . Trap Hack Attempts . | . . . . Triggered . | . . . . Disarmed . | . . . . Reprogrammed . | . . . . Reused . | . . . . Traps Extracted . | . . . . Installed . | . . . . Triggered . | . . . . Machines | -11 -10 -9 -8 ---------- Run | Yrd Mat Mat Mat Machines Disabled 18 | . 3 10 5 Max in Single Turn 3 | . 2 3 2 Machines Repaired . | . . . . Machines Dismantled . | . . . . Machines Sabotaged . | . . . . Overloaded Fab Kills . | . . . . Hacking | -11 -10 -9 -8 --------- Run | Yrd Mat Mat Mat Machines Accessed 4 | . 1 2 1 Terminals 4 | . 1 2 1 Fabricators . | . . . . Repair Stations . | . . . . Recycling Units . | . . . . Scanalyzers . | . . . . Garrison Access . | . . . . Total Hacks 8 | . 2 5 1 Successful 4 | . 1 3 . Failed 4 | . 1 2 1 Catastrophic 2 | . . 1 1 Database Lockouts . | . . . . Manual 2 | . . 1 1 Terminals 8 | . 2 5 1 Fabricators . | . . . . Repair Stations . | . . . . Recycling Units . | . . . . Scanalyzers . | . . . . Garrison Access . | . . . . Terminal Hacks 4 | . 1 3 . Record 1 | . . 1 . Robot Analysis 1 | . . 1 . Terminal Index 1 | . . 1 . Locate Traps 1 | . 1 . . Fabricator Hacks . | . . . . Repair Station Hacks . | . . . . Recycling Unit Hacks . | . . . . Scanalyzer . | . . . . Garrison Access Hacks . | . . . . Unauthorized Hacks . | . . . . Terminals . | . . . . Fabricators . | . . . . Repair Stations . | . . . . Recycling Units . | . . . . Scanalyzers . | . . . . Garrison Access . | . . . . Data Cores Recovered . | . . . . Used . | . . . . Hacking Detections 4 | . 1 2 1 Full Trace Events . | . . . . Feedback Events . | . . . . Feedback Blocked . | . . . . Robot Schematics Acquired . | . . . . Robots Built . | . . . . Authchips . | . . . . Time . | . . . . Total Robot Build Rating . | . . . . Part Schematics Acquired . | . . . . Parts Built . | . . . . Authchips . | . . . . Time . | . . . . Total Part Build Rating . | . . . . Parts Repaired . | . . . . Time . | . . . . Parts Recycled . | . . . . Recycled Matter . | . . . . Retrieved Matter . | . . . . Retrieved Components . | . . . . Parts Scanalyzed . | . . . . Part Schematics Acquired . | . . . . Parts Damaged . | . . . . Bothacking | -11 -10 -9 -8 ------------ Run | Yrd Mat Mat Mat Used RIF Installer . | . . . . Robots Hacked . | . . . . Non-combat . | . . . . Combat . | . . . . Robot Hacks Applied . | . . . . Relay Couplers Released . | . . . . Fabnet Peak Effective % . | . . . . Robots Rewired . | . . . . Allies Hacked . | . . . . Hacks Repelled . | . . . . Allies | -11 -10 -9 -8 -------- Run | Yrd Mat Mat Mat Total Allies . | . . . . Largest Group . | . . . . Highest-Rated Group . | . . . . Highest-Rated Ally . | . . . . Total Orders . | . . . . Ally Attacks . | . . . . Total Damage . | . . . . Kills . | . . . . Allies Corrupted . | . . . . Allies Melted . | . . . . Intel | -11 -10 -9 -8 ------- Run | Yrd Mat Mat Mat Robot Analysis Total 1 | . . 1 . Derelict Logs Recovered . | . . . . Drone Launches . | . . . . Drone Recoveries . | . . . . Exploration | -11 -10 -9 -8 ------------- Run | Yrd Mat Mat Mat Turns Passed 1302 | 118 262 736 186 Spaces Moved 1531 | 74 296 914 247 Core 373 | 17 . 208 148 Treads . | . . . . Legs . | . . . . Wheels 211 | 57 154 . . Hover 121 | . . 22 99 Flight 826 | . 142 684 . Fastest Speed 37 | 50 37 37 50 Average Speed 54 | 73 61 50 54 Slowest Speed 150 | 80 90 150 100 Overloaded Moves . | . . . . Propulsion Burnouts . | . . . . Robots Hopped 8 | . . 8 . Cave-ins Triggered . | . . . . Exploration Rate (%) 39 | 7 51 68 32 Regions Visited 3 Branch Regions . Pre-discovered Areas . | . . . . Known Exits Taken 2 | . 1 1 . Unknown Exits Taken 1 | 1 . . . Scrap Searched . | . . . . Spaces Dug 5 | . 5 . . Terrain Destroyed 321 | . 39 187 95 Melee . | . . . . Projectile . | . . . . AOE 321 | . 39 187 95 Terrain Rammed . | . . . . Walls Destroyed . | . . . . Machines Disabled . | . . . . Actions | -11 -10 -9 -8 --------- Run | Yrd Mat Mat Mat Total 1880 | 113 354 1123 290 Wait 146 | . 3 130 13 Move 1512 | 73 295 897 247 Hop 8 | . . 8 . Pick Up 36 | 5 12 10 9 Fast Attach . | . . . . Attach 30 | 5 9 12 4 Detach 7 | . 2 5 . Swap . | . . . . Drop 15 | . 6 3 6 Fire 125 | 30 27 57 11 Melee . | . . . . Ram 1 | . . 1 . Kick . | . . . . Crush . | . . . . Escape Stasis . | . . . . Rewire . | . . . . Trap . | . . . . Miscellaneous . | . . . . Route ------- -11/Scrapyard -10/Materials -9/Materials (discovered 3 exits: *Mat / *Min x2) -8/Materials (discovered 1 exit: [*Fac]) History --------- Turn | Location | Event 2 | -11/Scrapyard | Met Revision 17 67 | -11/Scrapyard | Discovered new exit (range 8) 119 | -11/Scrapyard | Entered Materials 330 | -10/Materials | Discovered new exit (range 15) 336 | -10/Materials | Identified exit to Materials 348 | -10/Materials | Build established: Mutant 381 | -10/Materials | Entered another Materials area 381 | -9/Materials | Evolved 2 slots: Propulsion x1, Utility x1 385 | -9/Materials | Discovered new exit (range 16) 393 | -9/Materials | Identified exit to Mines 904 | -9/Materials | Core integrity fell below 50% 944 | -9/Materials | Discovered exit to Mines (range 12) 1005 | -9/Materials | Core integrity fell below 20% 1066 | -9/Materials | Discovered new exit (range 15) 1073 | -9/Materials | Identified exit to Materials 1117 | -9/Materials | Entered another Materials area 1117 | -8/Materials | Evolved 2 slots: Utility x2 1218 | -8/Materials | Core integrity fell below 50% 1232 | -8/Materials | Core integrity fell below 20% 1243 | -8/Materials | Discovered new exit (range 15) 1260 | -8/Materials | Lost 8 parts (1p1n3u3w) 1303 | -8/Materials | Destroyed by Y-45 Defender with Heavy Assault Rifle Last Messages --------------- U-05 Engineer builds a Wall. The unstable cave ceiling collapses. ECM Suite destroyed. U-05 Engineer builds a Wall. Y-45 Defender destroyed. U-05 Engineer lays Concrete. R-06 Scavenger collects Beam Rifle. U-05 Engineer lays Concrete. The unstable cave ceiling collapses. U-05 Engineer lays Concrete. Adv. Weight Redist. System destroyed. Critical hit (Burn: +37). U-05 Engineer lays Concrete. EXIT=FOUND Acquired Cesium-ion Thruster. Dropped Hover Unit. Acquired Cesium-ion Thruster. Dropped Trap Extractor. Acquired System Shield. Connecting with Terminal... Map ----- +----------------------------------------------------+ | ??????????????????????############### #????????? | | ????????????????????? #????????? | | ????????????????????????????## #????????? | | ?????????????????????????????# #????????? | | ?????????????????????????????# ##########????????? | | ?????????????????????????????# #?????????????????? | | ?????????????????????????????# #?????????????????? | | ?????????????????????????????# #?????????????????? | | ?????????????????????????????# #?????????????????? | | ????????????????????????????##+####??????????????? | | ????????????????????????????# !#??????????????? | | ????????????????????????????# #??????????????? | | ????????????????????????????# #######????????? | | ????????????????????????????# """ ## #????????? | | ????????????????????????????# """ ## " #????????? | | ????????????????????????????# """ ## T #????????? | | ????????????????????????????# ## " #????????? | | ??????????????????????##+#####+##### #????????? | | ?????????????########## # [ #????????? | | ?????????????# + # #????????? | | ?????????????# ########### + #????????? | | ?????????????# """ #?????????# # #????????? | | ?????????????+ """ #?????????# ######????????? | | ?????????????# """ #???###### ####?????????? | | ?????????????# ##### Y ??????? | | ?????????????# + @ k ??????? | | ?????????????##############+#### ###??????????? | | ???????????????????# ##+###????????????? | | ???????????????????# #?????????????????? | | ???????????????????#= """ """ #?????????????????? | | ???????????????????# """ """ #?????????????????? | | ???????????????????#[ """ """ #?????????????????? | | ???????????????????# #?????????????????? | | ???????????????????# #?????????????????? | | ???????????????????#############?????????????????? | | | | | | | | | | | | | | | | | | | | | | | | | | | | | | | +----------------------------------------------------+ Best States ------------- Heat Dissipation 31 Energy Generation 14 Energy Capacity 240 Matter Stores 300 Matter Capacity 300 Sight Range 16 Robot Scan Range 14 Terrain Scan Density 10 ECM Strength 1 Additional Mass Support 9 Evasion (%) 62 Trap Extractor Capacity 4 Item Schematics ----------------- None Robot Schematics ------------------ None Fabricated ------------ Nothing Alien Tech Used ----------------- None Achievements -------------- Close Call Crack Shot Let's See Who's Tougher Remodeling Challenges ------------ None Game ------ Seed TerrabombFlyingChip Manual? 0 Play Time 00:40:41 Cumulative 3.3 hours Start 2024.04.02 @ 15:43:00 End 2024.04.02 @ 16:23:32 Sessions 1 Manual Loads 0 Difficulty Rogue Special Mode None Game No. 3 Rogue 3 Adventurer 0 Explorer 0 Win Type - Total 0 Types 0/0/0/0/0/0/0/0/0 Lore% 4 Gallery% 5 Achievement% 6 Wizard Run 0 Options --------- Layout 1 ASCII 0 Keyboard 0 Movement Mouse Keybinds 0 Fullscreen 2 Font 20/SmallcapsGlow Map View 54x42 Zoom Use 0% Tactical HUD 0 Map Filters NONE Filters NONE Steam 1 RUN: 402b4a22-1986-4e6a-8912-250057c04ad0